[Event "15e Open International de Quenza"]
[Site "Quenza"]
[Date "2026.07.05"]
[Round "6.13"]
[White "BERNARDI, Alexandre"]
[Black "PAOLI, Guillaume"]
[Result "1/2-1/2"]
[TimeControl "5min+3s"]
[WhiteTitle "-"]
[BlackTitle "-"]
[WhiteFideId "-"]
[BlackFideId "-"]
[WhiteElo "1948"]
[BlackElo "1991"]

1. e4 {[%clk 00:05:03]} {[%emt 00:00:02]} c5 {[%clk 00:05:03]} {[%emt
00:00:01]} 2. Nf3 {[%clk 00:05:03]} e6 {[%clk 00:05:03]} 3. g3 {[%clk
00:05:03]} {[%emt 00:00:02]} d5 {[%clk 00:05:03]} 4. exd5 {[%clk 00:05:03]}
{[%emt 00:00:01]} Qxd5 {[%clk 00:05:03]} {[%emt 00:00:02]} 5. Nc3 {[%clk
00:05:02]} {[%emt 00:00:04]} Qd8 {[%clk 00:05:03]} {[%emt 00:00:04]} 6. Bg2
{[%clk 00:04:55]} {[%emt 00:00:10]} Nc6 {[%clk 00:05:03]} {[%emt 00:00:01]} 7.
O-O {[%clk 00:04:55]} {[%emt 00:00:02]} Nf6 {[%clk 00:05:03]} 8. d3 {[%clk
00:04:52]} {[%emt 00:00:08]} Be7 {[%clk 00:05:03]} {[%emt 00:00:02]} 9. Be3
{[%clk 00:04:52]} {[%emt 00:00:02]} O-O {[%clk 00:05:00]} {[%emt 00:00:05]} 10.
d4 {[%clk 00:04:35]} {[%emt 00:00:20]} cxd4 {[%clk 00:04:58]} {[%emt 00:00:05]}
11. Nxd4 {[%clk 00:04:35]} Nxd4 {[%clk 00:04:53]} {[%emt 00:00:08]} 12. Bxd4
{[%clk 00:04:28]} {[%emt 00:00:10]} a6 {[%clk 00:04:53]} 13. Qd2 {[%clk
00:04:15]} {[%emt 00:00:16]} e5 {[%clk 00:04:43]} {[%emt 00:00:14]} 14. Be3
{[%clk 00:04:15]} {[%emt 00:00:01]} Qxd2 {[%clk 00:04:37]} {[%emt 00:00:09]} 15.
Bxd2 {[%clk 00:04:15]} Bf5 {[%clk 00:04:26]} {[%emt 00:00:14]} 16. Rac1 {[%clk
00:04:01]} {[%emt 00:00:17]} Rab8 {[%clk 00:04:22]} {[%emt 00:00:07]} 17. Rfe1
{[%clk 00:04:00]} {[%emt 00:00:04]} Bd6 {[%clk 00:04:03]} {[%emt 00:00:21]} 18.
Bg5 {[%clk 00:03:42]} {[%emt 00:00:21]} Nd7 {[%clk 00:03:49]} {[%emt 00:00:17]}
19. Rcd1 {[%clk 00:03:36]} {[%emt 00:00:10]} f6 {[%clk 00:03:42]} {[%emt
00:00:11]} 20. Be3 {[%clk 00:03:12]} {[%emt 00:00:27]} Bb4 {[%clk 00:03:42]}
{[%emt 00:00:03]} 21. Bd2 {[%clk 00:02:38]} {[%emt 00:00:36]} Bxc2 {[%emt
00:00:09]} 22. Rc1 Bg6 {[%clk 00:03:34]} {[%emt 00:00:04]} 23. a3 {[%emt
00:00:11]} Bd6 {[%clk 00:03:28]} {[%emt 00:00:09]} 24. Be3 {[%clk 00:02:18]}
{[%emt 00:00:17]} Bc5 {[%clk 00:03:28]} {[%emt 00:00:02]} 25. Rcd1 {[%clk
00:02:05]} {[%emt 00:00:15]} Bxe3 {[%clk 00:03:28]} {[%emt 00:00:03]} 26. Rxd7
{[%clk 00:02:02]} {[%emt 00:00:06]} Bd4 {[%clk 00:03:28]} {[%emt 00:00:02]} 27.
Rxb7 {[%clk 00:01:42]} {[%emt 00:00:24]} Rxb7 {[%clk 00:03:28]} 28. Bxb7 {[%clk
00:01:42]} {[%emt 00:00:01]} Rb8 {[%clk 00:03:28]} {[%emt 00:00:03]} 29. Bxa6
{[%clk 00:01:28]} {[%emt 00:00:17]} Rxb2 {[%clk 00:03:28]} {[%emt 00:00:02]} 30.
Nd1 {[%clk 00:01:24]} {[%emt 00:00:07]} Rd2 {[%clk 00:03:10]} {[%emt 00:00:20]}
31. Ne3 {[%clk 00:01:19]} {[%emt 00:00:08]} f5 {[%clk 00:02:28]} {[%emt
00:00:46]} 32. Re2 {[%clk 00:01:02]} {[%emt 00:00:20]} Rxe2 {[%clk 00:01:54]}
{[%emt 00:00:37]} 33. Bxe2 {[%clk 00:01:02]} {[%emt 00:00:02]} Kf7 {[%clk
00:01:44]} {[%emt 00:00:13]} 34. Nc2 {[%clk 00:00:36]} {[%emt 00:00:30]} Ba7
{[%clk 00:01:37]} {[%emt 00:00:10]} 35. Kf1 {[%clk 00:00:31]} {[%emt 00:00:07]}
Ke6 {[%clk 00:01:36]} {[%emt 00:00:04]} 36. Nb4 {[%clk 00:00:28]} {[%emt
00:00:06]} Bc5 {[%clk 00:01:35]} {[%emt 00:00:03]} 37. Bc4+ {[%clk 00:00:23]}
{[%emt 00:00:08]} Kd6 {[%clk 00:01:30]} {[%emt 00:00:08]} 38. Ke2 {[%clk
00:00:23]} Bh5+ {[%clk 00:01:16]} {[%emt 00:00:18]} 39. Ke1 {[%clk 00:00:15]}
{[%emt 00:00:11]} Bf3 {[%clk 00:01:14]} {[%emt 00:00:04]} 40. Nc2 {[%clk
00:00:13]} {[%emt 00:00:04]} g6 {[%clk 00:01:01]} {[%emt 00:00:16]} 41. a4
{[%clk 00:00:11]} {[%emt 00:00:06]} Bc6 {[%clk 00:01:01]} {[%emt 00:00:03]} 42.
Bb3 {[%clk 00:00:10]} {[%emt 00:00:04]} Be4 {[%clk 00:00:47]} {[%emt 00:00:17]}
43. Ne3 {[%clk 00:00:09]} {[%emt 00:00:04]} Bd4 {[%clk 00:00:37]} {[%emt
00:00:13]} 44. Bg8 {[%clk 00:00:06]} {[%emt 00:00:06]} f4 {[%clk 00:00:27]}
{[%emt 00:00:13]} 45. Nc4+ {[%clk 00:00:05]} {[%emt 00:00:04]} Kc5 {[%clk
00:00:25]} {[%emt 00:00:01]} 1/2-1/2

[Event "15e Open International de Quenza"]
[Site "Quenza"]
[Date "2026.07.05"]
[Round "6.14"]
[White "DELADERRIERE, Apollo"]
[Black "SIBILLE, Ettore"]
[Result "1-0"]
[TimeControl "5min+3s"]
[WhiteTitle "-"]
[BlackTitle "-"]
[WhiteFideId "-"]
[BlackFideId "-"]
[WhiteElo "2111"]
[BlackElo "1822"]

1. e4 {[%clk 00:05:03]} c5 {[%clk 00:05:03]} {[%emt 00:00:03]} 2. c3 {[%clk
00:05:03]} {[%emt 00:00:03]} g6 {[%clk 00:05:03]} {[%emt 00:00:03]} 3. d4
{[%clk 00:05:03]} {[%emt 00:00:01]} cxd4 {[%clk 00:05:03]} {[%emt 00:00:02]} 4.
cxd4 {[%clk 00:05:03]} {[%emt 00:00:01]} d5 {[%clk 00:05:03]} 5. e5 {[%clk
00:05:03]} {[%emt 00:00:03]} Bg7 {[%clk 00:05:03]} 6. Nf3 {[%clk 00:04:59]}
{[%emt 00:00:08]} Bg4 {[%clk 00:05:03]} {[%emt 00:00:01]} 7. Nc3 {[%clk
00:04:58]} {[%emt 00:00:04]} Nh6 {[%clk 00:05:03]} {[%emt 00:00:03]} 8. h3
{[%clk 00:04:58]} {[%emt 00:00:01]} Bxf3 {[%clk 00:05:03]} {[%emt 00:00:02]} 9.
Qxf3 {[%clk 00:04:58]} {[%emt 00:00:03]} e6 {[%clk 00:05:03]} 10. Bb5+ {[%clk
00:04:49]} {[%emt 00:00:13]} Nd7 {[%clk 00:04:52]} {[%emt 00:00:13]} 11. O-O
{[%clk 00:04:43]} {[%emt 00:00:10]} Nf5 {[%clk 00:04:52]} {[%emt 00:00:03]} 12.
Rd1 {[%clk 00:04:36]} {[%emt 00:00:10]} O-O {[%clk 00:04:50]} {[%emt 00:00:04]}
13. b3 {[%clk 00:04:22]} {[%emt 00:00:18]} a6 {[%clk 00:04:29]} {[%emt
00:00:24]} 14. Bxd7 {[%clk 00:04:02]} {[%emt 00:00:23]} Qxd7 {[%clk 00:04:29]}
15. Ba3 {[%clk 00:04:02]} {[%emt 00:00:02]} Rfc8 {[%clk 00:04:06]} {[%emt
00:00:25]} 16. Na4 {[%clk 00:04:02]} {[%emt 00:00:02]} Qb5 {[%clk 00:03:37]}
{[%emt 00:00:32]} 17. g4 {[%clk 00:03:55]} {[%emt 00:00:10]} Nh6 {[%clk
00:03:36]} {[%emt 00:00:03]} 18. Bc5 {[%clk 00:03:41]} {[%emt 00:00:18]} Rc6
{[%clk 00:02:42]} {[%emt 00:00:57]} 19. Nc3 {[%clk 00:03:30]} {[%emt 00:00:14]}
Qa5 {[%clk 00:02:38]} {[%emt 00:00:06]} 20. b4 {[%clk 00:03:30]} {[%emt
00:00:03]} Qd8 {[%clk 00:02:38]} {[%emt 00:00:02]} 21. a4 {[%clk 00:03:20]}
{[%emt 00:00:14]} f6 {[%clk 00:01:49]} {[%emt 00:00:51]} 22. b5 {[%clk
00:03:18]} {[%emt 00:00:05]} Rcc8 {[%clk 00:01:46]} {[%emt 00:00:06]} 23. exf6
{[%clk 00:03:01]} {[%emt 00:00:19]} Bxf6 {[%clk 00:01:39]} {[%emt 00:00:11]} 24.
Re1 {[%clk 00:03:00]} {[%emt 00:00:04]} Be7 {[%clk 00:00:29]} {[%emt 00:01:12]}
25. Bxe7 {[%clk 00:02:32]} {[%emt 00:00:31]} Qxe7 {[%clk 00:00:29]} {[%emt
00:00:02]} 26. Nxd5 {[%clk 00:02:32]} {[%emt 00:00:03]} Qd6 {[%emt 00:00:09]}
27. Nf6+ {[%clk 00:02:14]} {[%emt 00:00:17]} Kg7 {[%clk 00:00:28]} {[%emt
00:00:02]} 28. g5 {[%clk 00:02:05]} {[%emt 00:00:12]} Nf7 {[%clk 00:00:28]}
{[%emt 00:00:02]} 29. Nxh7 {[%clk 00:02:03]} {[%emt 00:00:05]} Qxd4 {[%clk
00:00:18]} {[%emt 00:00:12]} 30. Rad1 {[%clk 00:01:59]} {[%emt 00:00:07]} Qb2
{[%clk 00:00:11]} {[%emt 00:00:10]} 31. Rd7 {[%clk 00:01:53]} {[%emt 00:00:10]}
1-0

[Event "15e Open International de Quenza"]
[Site "Quenza"]
[Date "2026.07.05"]
[Round "6.4"]
[White "SUMETS, Andrey"]
[Black "KJARTANSSON, Gudmundur"]
[Result "1-0"]
[TimeControl "5min+3s"]
[WhiteTitle "GM"]
[BlackTitle "GM"]
[WhiteFideId "-"]
[BlackFideId "-"]
[WhiteElo "2470"]
[BlackElo "2367"]

1. d4 {[%clk 00:05:03]} {[%emt 00:00:01]} d5 {[%clk 00:05:03]} {[%emt
00:00:01]} 2. c4 {[%clk 00:05:02]} {[%emt 00:00:04]} e6 {[%clk 00:05:03]}
{[%emt 00:00:01]} 3. Nf3 {[%clk 00:05:02]} {[%emt 00:00:01]} c6 {[%clk
00:05:03]} {[%emt 00:00:02]} 4. e3 {[%clk 00:04:57]} {[%emt 00:00:08]} Nf6
{[%clk 00:05:03]} {[%emt 00:00:02]} 5. Bd3 {[%clk 00:04:57]} {[%emt 00:00:04]}
dxc4 {[%clk 00:04:53]} {[%emt 00:00:14]} 6. Bxc4 {[%clk 00:04:57]} {[%emt
00:00:01]} c5 {[%clk 00:04:53]} {[%emt 00:00:01]} 7. O-O {[%clk 00:04:57]}
{[%emt 00:00:02]} a6 {[%clk 00:04:53]} {[%emt 00:00:01]} 8. Nc3 {[%clk
00:04:55]} {[%emt 00:00:04]} Nc6 {[%clk 00:04:53]} {[%emt 00:00:02]} 9. dxc5
{[%clk 00:04:35]} {[%emt 00:00:23]} Bxc5 {[%clk 00:04:47]} {[%emt 00:00:09]} 10.
Qxd8+ {[%clk 00:04:35]} {[%emt 00:00:02]} Kxd8 {[%clk 00:04:47]} {[%emt
00:00:01]} 11. a3 {[%clk 00:04:35]} {[%emt 00:00:02]} b5 {[%clk 00:04:45]}
{[%emt 00:00:05]} 12. Be2 {[%clk 00:04:34]} {[%emt 00:00:04]} Bb7 {[%clk
00:04:45]} {[%emt 00:00:01]} 13. b4 {[%clk 00:04:09]} {[%emt 00:00:28]} Bd6
{[%clk 00:04:38]} {[%emt 00:00:09]} 14. Bb2 {[%clk 00:04:09]} {[%emt 00:00:02]}
Ke7 {[%clk 00:04:38]} {[%emt 00:00:01]} 15. Rfd1 {[%clk 00:03:47]} {[%emt
00:00:25]} Rhd8 {[%clk 00:04:38]} {[%emt 00:00:03]} 16. Nd2 {[%clk 00:03:41]}
{[%emt 00:00:09]} Ne5 {[%clk 00:04:32]} {[%emt 00:00:09]} 17. Nb3 {[%clk
00:03:38]} {[%emt 00:00:06]} Rac8 {[%clk 00:04:20]} {[%emt 00:00:16]} 18. Na5
{[%clk 00:03:35]} {[%emt 00:00:07]} Ba8 {[%clk 00:04:16]} {[%emt 00:00:06]} 19.
Rac1 {[%clk 00:03:35]} {[%emt 00:00:01]} g5 {[%clk 00:04:04]} {[%emt 00:00:15]}
20. f3 {[%clk 00:03:32]} {[%emt 00:00:06]} Nd5 {[%clk 00:03:51]} {[%emt
00:00:16]} 21. Ne4 {[%clk 00:03:01]} {[%emt 00:00:33]} Nxe3 {[%clk 00:02:55]}
{[%emt 00:00:59]} 22. Rxd6 {[%clk 00:02:57]} {[%emt 00:00:07]} Bxe4 {[%clk
00:01:43]} {[%emt 00:01:15]} 23. Rxd8 {[%clk 00:02:30]} {[%emt 00:00:30]} Rxd8
{[%clk 00:01:31]} {[%emt 00:00:15]} 24. Bxe5 {[%clk 00:02:20]} {[%emt
00:00:13]} Rd2 {[%clk 00:01:31]} {[%emt 00:00:01]} 25. fxe4 {[%clk 00:02:08]}
{[%emt 00:00:14]} Rxe2 {[%clk 00:01:31]} {[%emt 00:00:01]} 26. Nc6+ {[%clk
00:02:08]} {[%emt 00:00:01]} Ke8 {[%clk 00:01:22]} {[%emt 00:00:13]} 27. Bf6
{[%clk 00:01:39]} {[%emt 00:00:32]} Rxg2+ {[%clk 00:01:16]} {[%emt 00:00:09]}
28. Kh1 {[%clk 00:01:39]} Rd2 {[%clk 00:00:42]} {[%emt 00:00:37]} 29. Bxg5
{[%clk 00:01:28]} {[%emt 00:00:15]} Rd3 {[%clk 00:00:33]} {[%emt 00:00:13]} 30.
Ne5 {[%clk 00:01:25]} {[%emt 00:00:05]} 1-0

[Event "15e Open International de Quenza"]
[Site "Quenza"]
[Date "2026.07.05"]
[Round "6.10"]
[White "MULLON, Jean-Baptiste"]
[Black "TREGUBOV, Pavel V."]
[Result "0-1"]
[TimeControl "5min+3s"]
[WhiteTitle "IM"]
[BlackTitle "GM"]
[WhiteFideId "-"]
[BlackFideId "-"]
[WhiteElo "2198"]
[BlackElo "2391"]

1. e4 {[%clk 00:05:03]} {[%emt 00:00:02]} c5 {[%clk 00:05:03]} {[%emt
00:00:02]} 2. Nf3 {[%clk 00:05:03]} e6 {[%clk 00:05:03]} {[%emt 00:00:01]} 3.
d4 {[%clk 00:05:03]} {[%emt 00:00:02]} cxd4 {[%clk 00:05:03]} {[%emt 00:00:01]}
4. Nxd4 {[%clk 00:05:03]} Nf6 {[%clk 00:05:03]} {[%emt 00:00:01]} 5. Nc3 {[%clk
00:05:03]} Nc6 {[%clk 00:05:03]} {[%emt 00:00:01]} 6. Ndb5 {[%clk 00:05:00]}
{[%emt 00:00:06]} Bb4 {[%clk 00:05:03]} {[%emt 00:00:02]} 7. a3 {[%clk
00:05:00]} {[%emt 00:00:03]} Bxc3+ {[%clk 00:05:03]} {[%emt 00:00:01]} 8. Nxc3
{[%clk 00:05:00]} {[%emt 00:00:01]} d5 {[%clk 00:05:03]} {[%emt 00:00:01]} 9.
Bd3 {[%clk 00:04:57]} {[%emt 00:00:07]} dxe4 {[%clk 00:05:03]} {[%emt
00:00:03]} 10. Nxe4 {[%clk 00:04:57]} {[%emt 00:00:01]} Nxe4 {[%clk 00:05:03]}
{[%emt 00:00:02]} 11. Bxe4 {[%clk 00:04:57]} Qxd1+ {[%clk 00:05:03]} {[%emt
00:00:03]} 12. Kxd1 {[%clk 00:04:57]} {[%emt 00:00:01]} Bd7 {[%clk 00:05:03]}
{[%emt 00:00:01]} 13. Be3 {[%clk 00:04:38]} {[%emt 00:00:22]} O-O-O {[%clk
00:04:54]} {[%emt 00:00:13]} 14. f3 {[%clk 00:04:04]} {[%emt 00:00:37]} f5
{[%clk 00:03:59]} {[%emt 00:00:57]} 15. Bxc6 {[%clk 00:04:00]} {[%emt
00:00:07]} Bxc6+ {[%clk 00:03:59]} {[%emt 00:00:02]} 16. Ke2 {[%clk 00:04:00]}
{[%emt 00:00:01]} Bb5+ {[%clk 00:03:42]} {[%emt 00:00:20]} 17. Kf2 {[%clk
00:04:00]} {[%emt 00:00:01]} b6 {[%clk 00:03:40]} {[%emt 00:00:06]} 18. c4
{[%clk 00:03:57]} {[%emt 00:00:05]} Ba4 {[%clk 00:03:40]} {[%emt 00:00:03]} 19.
Rac1 {[%clk 00:03:48]} {[%emt 00:00:12]} e5 {[%clk 00:03:35]} {[%emt 00:00:08]}
20. c5 {[%clk 00:03:44]} {[%emt 00:00:08]} Kb7 {[%clk 00:03:32]} {[%emt
00:00:07]} 21. cxb6 {[%clk 00:03:38]} {[%emt 00:00:09]} axb6 {[%clk 00:03:31]}
{[%emt 00:00:03]} 22. Rc4 {[%clk 00:03:38]} {[%emt 00:00:02]} Bc6 {[%clk
00:02:30]} {[%emt 00:01:04]} 23. Rhc1 {[%clk 00:03:28]} {[%emt 00:00:13]} Rd6
{[%clk 00:02:27]} {[%emt 00:00:06]} 24. Rb4 {[%clk 00:03:27]} {[%emt 00:00:05]}
Bd7 {[%clk 00:02:18]} {[%emt 00:00:11]} 25. f4 {[%clk 00:03:20]} {[%emt
00:00:10]} e4 {[%clk 00:02:06]} {[%emt 00:00:15]} 26. a4 {[%clk 00:03:13]}
{[%emt 00:00:11]} Ra8 {[%clk 00:01:57]} {[%emt 00:00:11]} 27. b3 {[%clk
00:03:13]} {[%emt 00:00:01]} Be6 {[%clk 00:01:43]} {[%emt 00:00:17]} 28. Rc5
{[%clk 00:03:06]} {[%emt 00:00:09]} Bd7 {[%clk 00:01:23]} {[%emt 00:00:24]} 29.
h3 {[%clk 00:02:48]} {[%emt 00:00:21]} g6 {[%clk 00:01:11]} {[%emt 00:00:15]}
30. Rc3 {[%clk 00:02:12]} {[%emt 00:00:38]} Ka6 {[%clk 00:01:09]} {[%emt
00:00:05]} 31. Rc7 {[%clk 00:02:01]} {[%emt 00:00:14]} Rc8 {[%clk 00:01:09]} 32.
Rxc8 {[%clk 00:01:45]} {[%emt 00:00:20]} Bxc8 {[%clk 00:01:09]} 33. Kg3 {[%clk
00:01:37]} {[%emt 00:00:11]} Be6 {[%clk 00:01:03]} {[%emt 00:00:09]} 34. Kf2
{[%clk 00:01:37]} {[%emt 00:00:02]} Rc6 {[%clk 00:00:59]} {[%emt 00:00:07]} 35.
Ke2 {[%clk 00:01:30]} {[%emt 00:00:10]} Rd6 {[%clk 00:00:56]} {[%emt 00:00:05]}
36. Bd4 {[%clk 00:01:22]} {[%emt 00:00:10]} Bxb3 {[%clk 00:00:47]} {[%emt
00:00:13]} 37. Ke3 {[%clk 00:01:01]} {[%emt 00:00:24]} Be6 {[%clk 00:00:42]}
{[%emt 00:00:07]} 38. Rb2 {[%clk 00:00:49]} {[%emt 00:00:16]} Bd7 {[%clk
00:00:37]} {[%emt 00:00:08]} 39. Rb4 {[%clk 00:00:48]} {[%emt 00:00:04]} Ka5
{[%clk 00:00:37]} {[%emt 00:00:01]} 40. Rc4 {[%clk 00:00:48]} Bxa4 {[%clk
00:00:36]} {[%emt 00:00:04]} 41. Bc3+ {[%clk 00:00:48]} {[%emt 00:00:02]} Kb5
{[%clk 00:00:36]} {[%emt 00:00:02]} 42. Rb4+ {[%clk 00:00:48]} {[%emt
00:00:02]} Kc5 {[%clk 00:00:36]} 43. Be1 {[%clk 00:00:13]} {[%emt 00:00:37]}
Rd1 {[%clk 00:00:27]} {[%emt 00:00:13]} 44. Rxa4 {[%clk 00:00:06]} {[%emt
00:00:11]} Rxe1+ {[%clk 00:00:27]} {[%emt 00:00:02]} 45. Kf2 {[%clk 00:00:06]}
Rd1 {[%clk 00:00:20]} {[%emt 00:00:11]} 46. Ra7 {[%clk 00:00:06]} {[%emt
00:00:01]} b5 {[%clk 00:00:19]} {[%emt 00:00:04]} 0-1

[Event "15e Open International de Quenza"]
[Site "Quenza"]
[Date "2026.07.05"]
[Round "6.7"]
[White "BRODOWSKI, Piotr"]
[Black "WEBB, Laurence E"]
[Result "1-0"]
[TimeControl "5min+3s"]
[WhiteTitle "IM"]
[BlackTitle "FM"]
[WhiteFideId "-"]
[BlackFideId "-"]
[WhiteElo "2435"]
[BlackElo "2200"]

1. d4 {[%emt 00:10:47]} Nf6 {[%emt 00:00:01]} 2. Bg5 {[%emt 00:00:01]} e6
{[%emt 00:00:02]} 3. Nd2 {[%emt 00:00:02]} h6 {[%emt 00:00:05]} 4. Bh4 {[%emt
00:00:02]} b6 {[%emt 00:00:01]} 5. e4 {[%emt 00:00:02]} g5 {[%emt 00:00:04]} 6.
Bg3 {[%emt 00:00:01]} Bb7 {[%emt 00:00:07]} 7. Bd3 {[%emt 00:00:01]} d6 {[%emt
00:00:19]} 8. Qe2 {[%emt 00:00:06]} Bg7 {[%emt 00:00:05]} 9. O-O-O {[%emt
00:00:25]} Nbd7 {[%emt 00:00:19]} 10. h4 {[%emt 00:00:35]} Qe7 {[%emt
00:00:16]} 11. hxg5 {[%emt 00:00:06]} hxg5 {[%emt 00:00:02]} 12. Rxh8+ {[%emt
00:00:03]} Bxh8 {[%emt 00:00:01]} 13. Ngf3 {[%emt 00:00:37]} g4 {[%emt
00:00:29]} 14. Rh1 {[%emt 00:00:09]} O-O-O {[%emt 00:00:04]} 15. Ne1 {[%emt
00:00:12]} e5 {[%emt 00:00:18]} 16. d5 {[%emt 00:00:09]} Nc5 {[%emt 00:00:05]}
17. Bb5 {[%emt 00:00:13]} Kb8 {[%emt 00:00:18]} 18. b4 {[%emt 00:00:10]} Ncd7
{[%emt 00:00:06]} 19. c3 Bg7 {[%emt 00:00:09]} 20. Nc2 {[%emt 00:00:01]} Rh8
{[%emt 00:00:17]} 21. Rxh8+ {[%emt 00:00:02]} Bxh8 22. Ne3 Nh5 {[%emt
00:00:36]} 23. Qxg4 {[%emt 00:00:21]} Ndf6 {[%emt 00:00:07]} 24. Qh4 {[%emt
00:00:08]} a6 {[%emt 00:00:10]} 25. Be2 {[%emt 00:00:02]} Nxd5 {[%emt
00:00:54]} 26. Qxe7 {[%emt 00:00:05]} Nxe7 {[%emt 00:00:02]} 27. Bxh5 {[%emt
00:00:02]} f5 {[%emt 00:00:19]} 28. exf5 {[%emt 00:00:04]} Bxg2 {[%emt
00:00:06]} 29. Nxg2 {[%emt 00:00:01]} Ng8 1-0